bitfinex/quotes_SOLUSD_20240625
["timestamp","ask_amount","ask_price","bid_price","bid_amount"]
[1719278984378,100.0,131.84,131.82,9.68]
[1719278984568,100.0,131.84,131.81,16.5078]
[1719278984869,100.0,131.84,131.81,16.5079]
[1719278985078,100.0,131.81,131.8,403.971]
[1719278985376,100.0,131.81,131.8,413.651]
[1719278987877,100.0,131.81,131.8,420.4795]
[1719278988657,100.0,131.81,131.8,33.5795]
[1719278991463,100.0,131.81,131.8,23.8995]
[1719278991683,100.0,131.81,131.8,26.751]
[1719278991856,100.0,131.81,131.8,17.071]
[1719278992569,100.0,131.81,131.8,33.5795]
[1719278993462,100.0,131.79,131.77,427.1946]
[1719278993669,100.0,131.79,131.78,16.5095]
[1719278994564,100.0,131.79,131.78,403.4095]
[1719278995465,100.0,131.79,131.78,386.9]
[1719278996193,100.0,131.79,131.78,393.7295]
[1719278999081,100.0,131.81,131.79,6.8288]
[1719279000168,100.0,131.81,131.8,6.8285]
[1719279000474,100.0,131.83,131.81,6.8279]
[1719279000686,100.0,131.83,131.8,16.5083]
[1719279000981,100.0,131.83,131.79,410.8008]
[1719279001190,100.0,131.81,131.79,386.9]
[1719279002869,100.0,131.81,131.79,393.7289]
[1719279003066,100.0,131.83,131.79,396.58]
[1719279003273,100.0,131.83,131.81,6.8279]
[1719279004072,209.68,131.85,131.81,6.8279]
[1719279004380,100.0,131.83,131.8,33.5792]
[1719279007087,100.0,131.83,131.82,386.9]
[1719279008390,100.0,131.83,131.82,403.4074]
[1719279008698,100.0,131.83,131.82,386.9]
[1719279008881,100.0,131.83,131.82,403.4074]
[1719279009081,100.0,131.83,131.82,396.58]
[1719279009573,100.0,131.83,131.81,403.4079]
[1719279010075,100.0,131.85,131.82,16.5073]
[1719279010274,100.0,131.85,131.83,6.8265]
[1719279010896,100.0,131.85,131.82,33.5753]
[1719279011102,100.0,131.83,131.82,9.68]
[1719279011589,100.0,131.83,131.81,403.4079]
[1719279012396,100.0,131.83,131.82,6.8274]
[1719279013992,100.0,131.83,131.81,386.9]
[1719279015610,100.0,131.83,131.82,6.8274]
[1719279015913,100.0,131.85,131.81,9.68]
[1719279016107,107.88187667,131.87,131.8,421.0425]
[1719279016289,100.0,131.87,131.85,6.8254]
[1719279017084,100.0,131.87,131.85,16.5054]
[1719279017490,100.0,131.89,131.86,6.8254]
[1719279018108,100.0,131.87,131.84,23.8917]
[1719279018297,100.0,131.87,131.84,9.68]
[1719279018704,100.0,131.85,131.81,23.8969]
[1719279018893,100.0,131.83,131.81,26.7491]
[1719279019194,100.0,131.83,131.81,33.577]
[1719279020487,100.0,131.83,131.81,26.7491]
[1719279020694,100.0,131.81,131.8,386.9]
[1719279020930,100.0,131.78,131.76,386.9]
[1719279021491,100.0,131.78,131.76,396.58]
[1719279021691,100.0,131.8,131.76,396.58]
[1719279022088,100.0,131.8,131.77,9.68]
[1719279022320,100.0,131.8,131.76,386.9]
[1719279022512,100.0,131.78,131.76,396.58]
[1719279023908,100.0,131.78,131.76,403.4105]
[1719279024090,100.0,131.78,131.76,386.9]
[1719279024298,100.0,131.78,131.75,9.68]
[1719279025999,100.0,131.78,131.76,9.68]
[1719279026827,100.0,131.8,131.76,16.5105]
[1719279027027,100.0,131.8,131.77,16.5096]
[1719279027398,100.0,131.8,131.77,9.68]
[1719279027813,100.0,131.8,131.77,16.5099]
[1719279027997,100.67132976,131.82,131.78,6.8294]
[1719279028201,100.67132976,131.82,131.79,16.509]
[1719279028202,100.0,131.82,131.79,16.509]
[1719279029122,100.0,131.82,131.79,9.68]
[1719279029499,100.0,131.82,131.79,16.5089]
[1719279029909,100.0,131.82,131.79,9.68]
[1719279030110,100.0,131.79,131.78,17.0733]
[1719279030314,100.0,131.79,131.77,386.4]
[1719279030501,100.0,131.79,131.77,396.08]
[1719279030911,100.0,131.79,131.77,402.91]
[1719279031321,100.0,131.79,131.78,6.8295]
[1719279032033,100.0,131.79,131.77,386.4]
[1719279033004,116.509,131.79,131.77,386.4]
[1719279033221,116.5095,131.78,131.77,386.4]
[1719279034126,116.5095,131.78,131.7,6.5533]
[1719279034127,100.0,131.73,131.7,6.8336]
[1719279034612,100.0,131.73,131.69,17.085]
[1719279034923,100.0,131.73,131.69,26.765]
[1719279035529,100.0,131.73,131.69,33.5987]
[1719279035829,100.0,131.7,131.68,386.4]
[1719279036308,100.0,131.7,131.68,393.2347]
[1719279036631,100.0,131.7,131.69,6.8342]
[1719279040013,100.0,131.7,131.68,393.2346]
[1719279040222,100.0,131.7,131.69,6.8342]
[1719279040824,100.0,131.74,131.7,6.8335]
[1719279040825,209.68,131.74,131.7,6.8335]
[1719279042237,100.0,131.72,131.69,23.919]
[1719279042538,100.0,131.7,131.66,399.8002]
[1719279043034,100.0,131.7,131.66,402.6448]
[1719279044712,100.0,131.7,131.67,6.8348]
[1719279044907,100.0,131.7,131.66,402.9156]
[1719279045123,100.0,131.7,131.66,386.4]
[1719279045124,100.0,131.68,131.66,386.4]
[1719279045510,9.68,131.67,131.66,386.4]
[1719279045715,100.0,131.65,131.62,6.8375]
[1719279046327,100.0,131.65,131.58,386.4]
[1719279046328,100.0,131.6,131.58,386.4]
[1719279046533,100.0,131.6,131.57,17.0999]
[1719279046911,100.0,131.6,131.57,23.9399]
[1719279047118,109.68,131.58,131.56,0.04503973]
[1719279047320,9.68,131.57,131.56,0.04503973]
[1719279048337,109.68,131.57,131.56,0.04503973]
[1719279048537,100.0,131.57,131.56,0.04503973]
[1719279048737,152.4604,131.57,131.56,0.04503973]
[1719279049034,152.4604,131.57,131.45,17.1165]
[1719279049035,245.62,131.52,131.45,17.1165]
[1719279049219,100.0,131.49,131.45,23.9627]
[1719279049428,100.0,131.51,131.46,6.8461]
[1719279049625,100.0,131.49,131.46,6.8461]
[1719279049821,100.0,131.51,131.46,6.8461]
[1719279050130,100.0,131.49,131.46,6.8461]
[1719279051314,100.0,131.51,131.47,6.8456]
[1719279051525,200.0,131.54,131.49,6.8445]
[1719279051723,106.8424,131.54,131.48,17.1116]
[1719279051918,100.0,131.52,131.48,23.9566]
[1719279052415,100.0,131.52,131.49,6.8446]
[1719279054355,100.0,131.5,131.49,6.8446]
[1719279055846,100.0,131.54,131.5,6.844]
[1719279056459,100.0,131.54,131.5,397.244]
[1719279057547,100.0,131.54,131.51,6.8434]
[1719279057744,100.0,131.54,131.5,397.2439]
[1719279057937,100.0,131.54,131.5,390.4]
[1719279058754,100.0,131.54,131.5,397.244]
[1719279059747,100.0,131.54,131.5,390.4]
[1719279061532,100.0,131.54,131.51,6.8435]
[1719279062655,100.0,131.54,131.5,407.5097]
[1719279062656,100.0,131.52,131.5,414.3536]
[1719279063037,100.0,131.52,131.5,390.4]
[1719279063740,100.0,131.54,131.5,397.2439]
[1719279064260,100.0,131.55,131.5,390.4]
[1719279064261,100.0,131.52,131.5,390.4]
[1719279064469,100.0,131.52,131.5,397.244]
[1719279064641,100.0,131.52,131.5,392.244]
[1719279066359,100.0,131.52,131.5,385.4]
[1719279067846,152.4632,131.52,131.5,385.4]
[1719279068159,100.0,131.51,131.5,385.4]
[1719279068361,106.8435,131.51,131.5,385.4]
[1719279068735,100.0,131.51,131.5,385.4]
[1719279070142,106.8435,131.51,131.5,385.4]
[1719279070541,100.0,131.51,131.5,385.4]
[1719279072964,152.4635,131.51,131.5,385.4]
[1719279073363,197.4635,131.51,131.5,385.4]
[1719279074267,152.4635,131.51,131.5,385.4]
[1719279077765,106.8435,131.51,131.5,385.4]
[1719279078273,100.0,131.51,131.5,385.4]
[1719279078491,106.8435,131.51,131.5,385.4]
[1719279080760,100.0,131.51,131.5,385.4]
[1719279081073,100.0,131.52,131.5,385.4]
[1719279082051,106.8435,131.51,131.5,385.4]
[1719279082264,115.99556487,131.51,131.5,385.4]
[1719279082465,109.15206487,131.51,131.5,385.4]
[1719279082664,115.99556487,131.51,131.5,385.4]
[1719279085680,109.15206487,131.51,131.5,385.4]
[1719279089488,9.15206487,131.51,131.5,385.4]
[1719279090085,115.99556487,131.51,131.5,385.4]
[1719279090290,9.15206487,131.51,131.5,385.4]
[1719279092183,215.99356487,131.55,131.5,385.4]
[1719279092483,100.0,131.55,131.52,6.1721]
[1719279092684,109.73,131.55,131.51,15.4351]
[1719279092862,107.90199958,131.55,131.51,22.2786]
[1719279093061,9.73,131.56,131.51,22.2786]
[1719279093266,100.0,131.55,131.51,15.4351]
[1719279093890,200.0,131.55,131.51,15.4351]
[1719279094186,100.0,131.53,131.51,15.4351]
[1719279094372,100.0,131.51,131.5,385.4]
[1719279095581,100.0,131.53,131.5,392.244]
[1719279096770,100.0,131.55,131.5,392.244]
[1719279096966,100.0,131.55,131.5,402.5099]
[1719279097171,100.0,131.55,131.51,6.8434]
[1719279097574,100.0,131.55,131.52,6.843]
[1719279097775,207.90158778,131.57,131.52,6.843]
[1719279098207,100.0,131.55,131.51,6.8435]
[1719279098377,100.0,131.55,131.5,402.5099]
[1719279098867,100.0,131.55,131.52,6.843]
[1719279099071,100.0,131.55,131.52,23.95]
[1719279099770,100.0,131.55,131.52,17.107]
[1719279100391,100.0,131.55,131.52,23.9499]
[1719279101175,100.0,131.55,131.52,17.107]
[1719279101593,100.0,131.55,131.52,23.9499]
[1719279102014,200.0,131.57,131.52,23.9499]
[1719279103090,100.0,131.53,131.5,6.8437]
[1719279103285,100.0,131.53,131.49,17.1106]
[1719279104402,100.0,131.53,131.49,23.9548]
[1719279104583,100.0,131.53,131.51,6.8434]
[1719279104783,7.88647115,131.57,131.49,17.1106]
[1719279104784,100.0,131.56,131.49,21.7819]
[1719279104978,7.88647115,131.57,131.52,6.8426]
[1719279105182,100.0,131.57,131.53,23.9482]
[1719279105384,207.88419679,131.59,131.54,6.8417]
[1719279106302,100.0,131.57,131.53,23.9483]
[1719279107703,100.0,131.58,131.54,6.8419]
[1719279108281,100.0,131.58,131.55,6.8411]
[1719279110100,100.0,131.6,131.56,6.8409]
[1719279110309,100.0,131.6,131.55,6.8413]
[1719279111898,100.0,131.61,131.56,6.8408]
[1719279112103,200.0,131.61,131.56,6.8408]
[1719279113305,100.0,131.59,131.56,6.8408]
[1719279119499,100.0,131.59,131.55,424.0646]
[1719279120515,100.0,131.59,131.56,6.8408]
[1719279120695,106.8384,131.61,131.57,23.9407]
[1719279120696,100.0,131.61,131.57,23.9407]
[1719279121399,100.0,131.61,131.57,17.1005]
[1719279121608,100.0,131.61,131.58,6.8398]
[1719279121803,100.0,131.61,131.58,16.5598]
[1719279122920,100.0,131.61,131.58,9.72]
[1719279123096,100.0,131.61,131.58,6.8397]
[1719279123301,9.15206487,131.62,131.58,16.5597]
[1719279123614,117.21640158,131.65,131.6,6.8388]
[1719279123796,100.0,131.63,131.6,6.8388]
[1719279124196,100.0,131.63,131.59,56.7385]
[1719279124690,9.72,131.64,131.59,56.7385]
[1719279125108,109.72,131.65,131.6,6.8387]
[1719279125315,100.0,131.65,131.61,9.72]
[1719279125613,100.0,131.65,131.6,16.5588]
[1719279126604,100.0,131.65,131.61,6.8382]
[1719279127110,100.0,131.61,131.59,23.081]
[1719279127313,100.0,131.61,131.56,23.942]
[1719279127506,109.72,131.61,131.56,23.942]
[1719279127709,116.5584,131.61,131.56,23.942]
[1719279127915,109.72,131.61,131.57,6.84]
[1719279128218,109.72,131.61,131.58,6.8399]
[1719279128419,109.72,131.61,131.55,419.0314]
[1719279128420,100.0,131.58,131.55,419.0314]
[1719279128598,100.0,131.58,131.55,390.4]
[1719279129620,100.0,131.6,131.55,407.5032]
[1719279130021,100.0,131.58,131.55,407.5032]
[1719279130207,100.0,131.58,131.56,6.8409]
[1719279131099,100.0,131.58,131.55,407.5032]
[1719279131318,100.0,131.56,131.55,390.4]
[1719279131694,100.0,131.58,131.55,390.4]
[1719279132704,100.0,131.56,131.55,390.4]
[1719279133019,106.8409,131.56,131.55,390.4]
[1719279133206,100.0,131.51,131.47,397.2455]
[1719279133541,100.0,131.51,131.47,390.4]
[1719279133926,100.0,131.51,131.47,397.2452]
[1719279134223,100.0,131.51,131.48,6.8451]
[1719279135020,100.0,131.51,131.47,397.2455]
[1719279136002,100.0,131.53,131.49,6.8442]
[1719279136206,100.0,131.53,131.5,6.844]
[1719279136624,200.0,131.55,131.51,6.8434]
[1719279136920,100.0,131.55,131.51,6.8434]
[1719279137127,100.0,131.55,131.5,17.1096]
[1719279137422,100.0,131.53,131.5,17.1096]
[1719279138125,100.0,131.55,131.5,17.1096]
[1719279138918,100.0,131.55,131.52,6.8427]
[1719279139817,100.0,131.55,131.49,16.296]
[1719279140001,109.15206487,131.57,131.53,6.8422]
[1719279140199,9.15206487,131.57,131.52,407.5068]
[1719279140509,200.0,131.59,131.54,6.8416]
[1719279140706,100.0,131.59,131.54,17.104]
[1719279141001,100.0,131.61,131.56,17.1014]
[1719279141814,209.15206487,131.63,131.56,33.1877]
[1719279142008,100.0,131.61,131.56,423.5877]
[1719279142603,109.15206487,131.63,131.57,6.2144]
[1719279142902,109.15206487,131.63,131.59,6.8393]
[1719279143513,100.0,131.63,131.6,6.8387]
[1719279143917,100.0,131.63,131.59,6.8393]
[1719279144117,100.0,131.63,131.58,23.939]
[1719279144318,100.0,131.63,131.59,6.8393]
[1719279144925,100.0,131.63,131.6,6.8388]
[1719279145313,100.0,131.63,131.59,6.8393]
[1719279145527,100.0,131.63,131.6,6.8388]
[1719279146110,100.0,131.63,131.61,6.8383]
[1719279146431,100.0,131.65,131.61,6.8383]
[1719279146736,100.0,131.65,131.6,414.3353]
[1719279147629,100.0,131.65,131.61,6.8382]
[1719279148913,100.0,131.65,131.62,6.8378]
[1719279149109,100.0,131.67,131.64,6.8364]
[1719279149605,100.0,131.67,131.65,6.8361]
[1719279151034,100.0,131.67,131.64,30.5715]
[1719279151236,100.0,131.67,131.64,6.6434]
[1719279151817,100.0,131.67,131.64,13.48]
[1719279152414,100.0,131.67,131.64,6.6434]
[1719279152624,100.0,131.67,131.63,429.3705]
[1719279153016,200.0,131.67,131.63,390.4]
[1719279153338,100.0,131.65,131.63,390.4]
[1719279154615,100.0,131.64,131.63,390.4]
[1719279154814,100.0,131.6,131.57,6.254]
[1719279155329,100.0,131.6,131.57,13.0944]
[1719279156118,100.0,131.6,131.57,6.254]
[1719279156324,100.0,131.58,131.56,17.1019]
[1719279156634,100.0,131.58,131.56,23.9427]
[1719279156830,100.0,131.58,131.57,6.8404]
[1719279158323,100.0,131.6,131.57,6.8404]
[1719279159232,100.0,131.6,131.56,17.1019]
[1719279159617,100.0,131.6,131.56,23.9428]
[1719279160238,100.0,131.6,131.57,6.8402]
[1719279160635,100.0,131.56,131.55,390.4]
[1719279161418,100.0,131.56,131.54,6.842]
[1719279161936,100.0,131.56,131.55,6.8415]
[1719279162124,100.0,131.56,131.54,6.8418]
[1719279162821,100.0,131.56,131.53,23.9483]
[1719279163227,100.0,131.56,131.54,6.8418]
[1719279163720,100.0,131.56,131.53,23.9481]
[1719279163921,100.0,131.54,131.51,412.4607]
[1719279164236,100.0,131.54,131.52,6.843]
[1719279164416,100.0,131.54,131.53,6.8425]
[1719279165522,100.0,131.54,131.52,23.95]
[1719279166137,100.0,131.54,131.52,17.1071]
[1719279166344,100.0,131.54,131.53,6.8425]
[1719279167529,100.0,131.56,131.53,6.8425]
[1719279167932,100.0,131.57,131.52,17.1071]
[1719279168440,100.0,131.57,131.54,6.8418]
[1719279169434,100.0,131.57,131.55,6.8412]
[1719279169624,100.0,131.59,131.55,6.8412]
[1719279170827,100.0,131.59,131.54,17.1044]
[1719279171229,100.0,131.59,131.56,6.8408]
[1719279171423,100.0,131.59,131.54,17.1044]
[1719279171424,100.0,131.59,131.55,6.8411]
[1719279173041,100.0,131.59,131.54,23.9463]
[1719279173548,100.0,131.59,131.55,6.8414]
[1719279175549,100.0,131.59,131.56,6.8409]
[1719279176646,100.0,131.6,131.57,6.8403]
[1719279176835,100.0,131.6,131.54,17.1044]
[1719279177157,100.0,131.59,131.56,6.8409]
[1719279182247,100.0,131.61,131.56,17.1017]
[1719279182453,109.15206487,131.63,131.6,6.8388]
[1719279182631,109.15206487,131.63,131.6,23.9352]
[1719279182831,100.0,131.61,131.6,17.0965]
[1719279183555,100.0,131.61,131.59,6.8393]
[1719279184150,109.15206487,131.63,131.59,6.8393]
[1719279184346,109.15206487,131.63,131.58,6.8398]
[1719279185046,109.15206487,131.63,131.59,6.8392]
[1719279185749,100.0,131.63,131.59,6.8392]
[1719279188963,100.0,131.58,131.56,16.6041]
[1719279189133,100.0,131.58,131.56,23.445]
[1719279190767,100.0,131.58,131.56,6.8409]
[1719279190937,100.0,131.58,131.53,413.1417]
[1719279191433,100.0,131.58,131.53,22.7417]
[1719279191645,100.0,131.58,131.57,6.8404]
[1719279192343,209.15206487,131.63,131.59,6.8394]
[1719279192656,209.15206487,131.63,131.55,34.2055]
[1719279192657,100.0,131.63,131.61,6.8383]
[1719279192851,100.0,131.61,131.59,6.839]
[1719279193244,100.0,131.61,131.59,6.8392]
[1719279193434,100.0,131.61,131.59,17.0981]
[1719279193956,100.0,131.61,131.6,6.8389]
[1719279195835,100.0,131.63,131.6,6.8389]
[1719279196036,100.0,131.63,131.61,6.8383]
[1719279197061,100.0,131.63,131.6,6.8388]
[1719279197369,100.0,131.61,131.55,407.5025]
[1719279197571,100.0,131.59,131.55,407.5025]
[1719279197860,100.0,131.59,131.55,390.4]
[1719279198160,100.0,131.59,131.55,397.2412]
[1719279198341,100.0,131.57,131.55,390.4]
[1719279198862,100.0,131.57,131.55,397.2414]
[1719279200362,100.0,131.57,131.56,6.8409]
[1719279201342,100.0,131.57,131.55,407.5033]
[1719279203161,100.0,131.57,131.55,17.1033]
[1719279203539,100.0,131.57,131.55,23.9444]
[1719279203744,100.0,131.57,131.56,6.8409]
[1719279204361,100.0,131.55,131.53,22.7417]
[1719279204548,100.0,131.55,131.53,6.8421]
[1719279205863,100.0,131.55,131.54,6.842]
[1719279207744,15.7345,131.61,131.56,6.8409]
[1719279207745,100.0,131.57,131.56,6.8409]
[1719279208153,100.0,131.59,131.57,17.1004]
[1719279208359,100.0,131.59,131.58,6.8399]
[1719279208766,100.0,131.59,131.57,23.9407]
[1719279210167,100.0,131.61,131.6,6.8389]
[1719279210372,100.0,131.61,131.59,23.9374]
[1719279211272,100.0,131.61,131.59,17.0981]
[1719279212257,100.0,131.59,131.56,45.9027]
[1719279212563,100.0,131.59,131.57,6.8404]
[1719279212958,100.0,131.59,131.58,6.8399]
[1719279214957,100.0,131.59,131.56,39.0623]
[1719279216763,100.0,131.59,131.58,6.8399]
[1719279217689,100.0,131.59,131.57,6.8403]
[1719279218164,100.0,131.59,131.56,17.1016]
[1719279218165,100.0,131.57,131.56,17.1016]
[1719279219283,109.72,131.57,131.56,17.1016]
[1719279219775,109.72,131.57,131.53,21.1427]
[1719279219776,109.72,131.57,131.53,38.2482]
[1719279219977,109.72,131.57,131.54,6.8419]
[1719279220163,109.72,131.57,131.55,6.8414]
[1719279220763,100.0,131.57,131.55,6.8414]
[1719279223178,100.0,131.59,131.56,6.8409]
[1719279223962,100.0,131.59,131.55,23.9447]
[1719279224283,100.0,131.57,131.55,17.1033]
[1719279225975,100.0,131.55,131.52,23.9494]
[1719279226376,100.0,131.53,131.51,6.8434]
[1719279226985,100.0,131.53,131.52,6.843]
[1719279232785,100.0,131.53,131.51,23.952]
[1719279233594,100.0,131.53,131.51,17.1086]
[1719279234386,100.0,131.53,131.51,23.9521]
[1719279237591,100.0,131.53,131.51,23.952]
[1719279238980,100.0,131.53,131.52,6.843]
[1719279239190,100.0,131.53,131.51,23.9521]
[1719279239386,100.0,131.53,131.52,6.843]
[1719279240475,100.0,131.53,131.51,23.952]
[1719279240675,109.73,131.53,131.51,23.952]
[1719279241786,109.73,131.53,131.51,23.9521]
[1719279242002,100.0,131.51,131.49,6.8445]
[1719279242376,100.0,131.49,131.47,6.8451]
[1719279242577,109.73,131.49,131.46,6.846]
[1719279242780,100.0,131.49,131.47,6.8456]
[1719279242996,100.0,131.49,131.47,17.1138]
[1719279242997,109.73,131.49,131.47,17.1138]
[1719279243309,109.73,131.49,131.47,23.9591]
[1719279243598,109.73,131.49,131.48,6.8451]
[1719279244100,100.0,131.49,131.48,6.8451]
[1719279244687,100.0,131.51,131.5,6.8441]
[1719279244884,109.73,131.51,131.49,6.8442]
[1719279245196,100.0,131.51,131.48,6.845]
[1719279245401,100.0,131.51,131.47,17.1138]
[1719279245698,109.73,131.51,131.49,6.8445]
[1719279246119,9.73,131.5,131.48,6.8449]
[1719279246682,100.0,131.51,131.48,6.8449]
[1719279246884,9.73,131.5,131.48,6.8449]
[1719279247903,9.73,131.5,131.47,23.9592]
[1719279248597,100.0,131.51,131.47,23.9592]
[1719279248794,9.73,131.5,131.47,23.9592]
[1719279249299,100.0,131.47,131.44,17.1179]
[1719279249510,109.73,131.47,131.44,17.1179]
[1719279249682,109.73,131.47,131.44,23.9651]
[1719279250702,109.73,131.47,131.44,17.1179]
[1719279251087,109.73,131.47,131.43,6.8476]
[1719279251409,9.73,131.46,131.43,6.8476]
[1719279252517,9.73,131.46,131.44,6.8468]
[1719279252704,109.73,131.47,131.38,21.6192]
[1719279252906,109.73,131.47,131.42,17.1202]
[1719279253094,109.73,131.47,131.44,6.8472]
[1719279253298,100.0,131.45,131.43,6.8477]
[1719279253721,100.0,131.47,131.44,23.964]
[1719279254029,109.73,131.47,131.44,17.1172]
[1719279254225,9.73,131.46,131.44,17.1172]
[1719279255913,109.73,131.47,131.44,17.1172]
[1719279256715,109.73,131.47,131.43,6.8475]
[1719279257043,9.73,131.46,131.44,6.8471]
[1719279257340,109.73,131.47,131.43,23.9662]
[1719279257906,109.73,131.47,131.43,17.1186]
[1719279258309,109.73,131.47,131.43,23.9661]
[1719279258743,100.0,131.45,131.43,17.1186]
[1719279259043,100.0,131.45,131.43,23.9662]
[1719279259935,100.0,131.47,131.44,6.8472]
[1719279260139,100.0,131.47,131.43,17.1186]
[1719279260140,9.73,131.48,131.45,6.8466]
[1719279261238,9.73,131.48,131.44,6.8471]
[1719279261445,100.0,131.51,131.45,17.1162]
[1719279261625,100.0,131.51,131.48,6.8447]
[1719279261939,100.0,131.51,131.47,23.9591]
[1719279262657,100.0,131.49,131.45,6.0824]
[1719279262946,100.0,131.49,131.45,12.9287]
[1719279263239,100.0,131.49,131.45,12.9289]
[1719279263620,100.0,131.49,131.46,6.8461]
[1719279266757,106.8432,131.52,131.45,15.8124]
[1719279266758,100.0,131.53,131.45,6.0824]
[1719279266928,100.0,131.53,131.49,6.8442]
[1719279267447,109.73,131.53,131.49,6.8442]
[1719279267635,109.73,131.53,131.5,6.844]
[1719279268324,109.73,131.53,131.49,6.8445]
[1719279269041,109.73,131.53,131.5,6.844]
[1719279269233,106.8415,131.55,131.49,6.8446]
[1719279269423,100.0,131.55,131.5,26.8396]
[1719279269623,100.0,131.55,131.51,6.8435]
[1719279270735,122.9806,131.57,131.53,16.5723]
[1719279270736,100.0,131.57,131.53,16.5723]
[1719279271239,100.0,131.57,131.54,6.8419]
[1719279271449,109.15206487,131.59,131.55,9.73]
[1719279271628,109.15206487,131.59,131.56,17.1019]
[1719279272023,109.15206487,131.59,131.55,9.73]
[1719279272224,100.0,131.57,131.53,17.1056]
[1719279272547,116.5704,131.57,131.51,16.5731]
[1719279272748,116.5704,131.57,131.5,39.8485]
[1719279272749,116.5704,131.57,131.52,16.573]
[1719279272947,116.5704,131.57,131.52,6.843]
[1719279273122,216.5704,131.57,131.52,6.843]
[1719279273325,109.73,131.57,131.52,16.573]
[1719279273520,109.73,131.57,131.53,6.8425]
[1719279274531,100.0,131.57,131.53,6.8425]
[1719279274739,109.73,131.57,131.53,6.8425]
[1719279274944,100.0,131.57,131.53,6.8425]
[1719279277642,100.0,131.57,131.54,6.8419]
[1719279277855,100.0,131.57,131.53,6.8424]
[1719279278041,100.0,131.57,131.53,16.5724]
[1719279278345,100.0,131.57,131.53,6.8424]
[1719279278668,100.0,131.55,131.52,33.68]
[1719279279236,100.0,131.55,131.52,23.95]
[1719279279429,100.0,131.53,131.5,22.7392]
[1719279279633,100.0,131.53,131.49,61.0619]
[1719279279851,100.0,131.53,131.51,6.8435]
[1719279280843,100.0,131.55,131.51,6.8435]
[1719279281039,100.0,131.55,131.52,6.8429]
[1719279283456,100.0,131.55,131.51,17.1085]
[1719279283643,109.73,131.55,131.51,23.952]
[1719279283836,109.73,131.55,131.52,6.843]
[1719279284431,109.73,131.53,131.48,17.1122]
[1719279284651,109.73,131.53,131.49,6.8444]
[1719279286048,100.0,131.53,131.5,6.844]
[1719279286231,109.73,131.53,131.5,6.844]
[1719279286728,100.0,131.53,131.5,6.844]
[1719279286946,109.73,131.53,131.5,6.844]
[1719279287637,100.0,131.53,131.51,6.8434]